fUSD/lending_fUSD_20250820
["ID","MTS","AMOUNT","RATE_DAILY","PERIOD"]
[380302624,1755648643732,-303.536632,0.00011642,2]
[380302626,1755648643741,-151.0,0.00011642,2]
[380302628,1755648643750,-278.001457,0.00011642,2]
[380302631,1755648643759,-303.536632,0.00011642,2]
[380302634,1755648643768,-151.0,0.00011642,2]
[380302636,1755648643777,-303.536632,0.00011642,2]
[380302638,1755648643786,-151.0,0.00011642,2]
[380302640,1755648643796,-151.0,0.00011642,2]
[380302642,1755648643806,-151.0,0.00011642,2]
[380302644,1755648643815,-151.0,0.00011642,2]
[380302646,1755648643824,-151.0,0.00011642,2]
[380302648,1755648643834,-151.0,0.00011642,2]
[380302650,1755648643843,-151.0,0.00011642,2]
[380302652,1755648643852,-151.0,0.00011642,2]
[380302654,1755648643861,-344.908136,0.00011642,2]
[380302656,1755648643870,-170.96295,0.00011642,2]
[380302658,1755648643880,-344.908136,0.00011642,2]
[380302660,1755648643890,-307.295248,0.00011642,2]
[380302662,1755648643899,-344.908136,0.00011642,2]
[380302664,1755648643909,-307.295248,0.00011642,2]
[380302666,1755648643919,-344.908136,0.00011642,2]
[380302668,1755648643928,-151.0,0.00011642,2]
[380302670,1755648643937,-307.295248,0.00011642,2]
[380302671,1755648643947,-151.0,0.00011642,2]
[380302672,1755648643956,-151.0,0.00011642,2]
[380302673,1755648643965,-151.0,0.00011642,2]
[380302674,1755648643974,-307.295248,0.00011642,2]
[380302675,1755648643984,-151.895197,0.00011642,2]
[380302676,1755648643993,-151.0,0.00011642,2]
[380302677,1755648644002,-151.0,0.00011642,2]
[380302678,1755648644011,-151.0,0.00011642,2]
[380302679,1755648644021,-151.903474,0.00011642,2]
[380302680,1755648644030,-178.082281,0.00011642,2]
[380302681,1755648644039,-178.082281,0.00011642,2]
[380302683,1755648644049,-178.082281,0.00011642,2]
[380302685,1755648644060,-178.082281,0.00011642,2]
[380302687,1755648644070,-151.0,0.00011642,2]
[380302689,1755648644079,-151.0,0.00011642,2]
[380302691,1755648644091,-204.29,0.00011651,2]
[380302693,1755648644101,-225.0,0.00011652,2]
[380302695,1755648644110,-60176.235273,0.00011726,2]
[380302697,1755648644119,-2148.6469758,0.00011736,2]
[380302699,1755648644130,-718.3,0.00011753,2]
[380302701,1755648644139,-9409.6574948,0.00011782,2]
[380302703,1755648644149,-8251.7387571,0.00011782,2]
[380302705,1755648644159,-6066.9247999,0.00011782,2]
[380302707,1755648644168,-151.0,0.00011782,2]
[380302709,1755648644178,-225.007726,0.00011782,2]
[380302711,1755648644187,-225.007726,0.00011782,2]
[380302713,1755648644196,-170.572615,0.00011782,2]
[380302715,1755648644205,-225.007726,0.00011782,2]
[380302717,1755648644214,-170.572615,0.00011782,2]
[380302719,1755648644223,-225.007726,0.00011782,2]
[380302721,1755648644232,-170.572615,0.00011782,2]
[380302723,1755648644242,-170.572615,0.00011782,2]
[380302725,1755648644251,-151.0,0.00011782,2]
[380302727,1755648644260,-151.702052,0.00011782,2]
[380302729,1755648644269,-228.410348,0.00011782,2]
[380302731,1755648644279,-482.568323,0.00011782,2]
[380302733,1755648644288,-482.568323,0.00011782,2]
[380302735,1755648644297,-482.568323,0.00011782,2]
[380302737,1755648644307,-482.568323,0.00011782,2]
[380302739,1755648644316,-474.826852,0.00011782,2]
[380302741,1755648644326,-474.826852,0.00011782,2]
[380302743,1755648644335,-211.941035,0.00011782,2]
[380302745,1755648644344,-474.826852,0.00011782,2]
[380302747,1755648644353,-151.0,0.00011782,2]
[380302748,1755648644363,-211.941035,0.00011782,2]
[380302751,1755648644372,-474.826852,0.00011782,2]
[380302752,1755648644381,-151.0,0.00011782,2]
[380302754,1755648644391,-151.0,0.00011782,2]
[380302756,1755648644400,-211.941035,0.00011782,2]
[380302758,1755648644409,-151.0,0.00011782,2]
[380302760,1755648644418,-151.0,0.00011782,2]
[380302762,1755648644427,-151.0,0.00011782,2]
[380302764,1755648644436,-211.941035,0.00011782,2]
[380302766,1755648644445,-602.78408,0.00011782,2]
[380302768,1755648644454,-151.0,0.00011782,2]
[380302770,1755648644463,-602.78408,0.00011782,2]
[380302772,1755648644472,-151.0,0.00011782,2]
[380302774,1755648644481,-602.78408,0.00011782,2]
[380302776,1755648644491,-151.0,0.00011782,2]
[380302778,1755648644500,-602.78408,0.00011782,2]
[380302780,1755648644510,-151.0,0.00011782,2]
[380302782,1755648644519,-151.0,0.00011782,2]
[380302784,1755648644528,-151.0,0.00011782,2]
[380302786,1755648644538,-151.0,0.00011782,2]
[380302788,1755648644548,-2092.054026,0.00011782,2]
[380302790,1755648644558,-2092.054026,0.00011782,2]
[380302792,1755648644567,-2092.054026,0.00011782,2]
[380302794,1755648644577,-2092.054026,0.00011782,2]
[380302796,1755648644586,-151.0,0.00011782,2]
[380302798,1755648644595,-151.0,0.00011782,2]
[380302800,1755648644605,-151.0,0.00011782,2]
[380302802,1755648644615,-437.576143,0.00011782,2]
[380302804,1755648644625,-437.576143,0.00011782,2]
[380302806,1755648644634,-151.0,0.00011782,2]
[380302808,1755648644644,-437.576143,0.00011782,2]
[380302810,1755648644654,-849.423362,0.00011782,2]
[380302812,1755648644664,-849.423362,0.00011782,2]
[380302814,1755648644673,-849.423362,0.00011782,2]
[380302816,1755648644682,-849.423362,0.00011782,2]
[380302818,1755648644691,-541.8776,0.00011782,2]
[380302820,1755648644701,-541.8776,0.00011782,2]
[380302822,1755648644711,-541.8776,0.00011782,2]
[380302824,1755648644720,-541.8776,0.00011782,2]
[380302826,1755648644729,-468.325856,0.00011782,2]
[380302828,1755648644738,-468.325856,0.00011782,2]
[380302830,1755648644747,-468.325856,0.00011782,2]
[380302832,1755648644756,-468.325856,0.00011782,2]
[380302834,1755648644767,-500.0,0.00011798,2]
[380302836,1755648644776,-500.0,0.00011798,2]
[380302838,1755648644786,-500.0,0.00011798,2]
[380302840,1755648644795,-1000.0,0.00011798,2]
[380302842,1755648644804,-1147.19,0.0001182,2]
[380302844,1755648644814,-200.0,0.00011822,2]
[380302846,1755648644824,-500.0,0.00011822,2]
[380302848,1755648644834,-496.0,0.00011822,2]
[380302850,1755648644844,-500.0,0.00011822,2]
[380302852,1755648644854,-150.0,0.00011822,2]
[380302854,1755648644864,-300.0,0.00011822,2]
[380302856,1755648644874,-151.0,0.00011888,2]
[380302858,1755648644883,-151.0,0.00011888,2]
[380302860,1755648644892,-151.0,0.00011888,2]
[380302862,1755648644902,-173.045958,0.00011888,2]
[380302864,1755648644911,-196.47192,0.00011888,2]
[380302866,1755648644920,-151.0,0.00011888,2]
[380302868,1755648644930,-151.0,0.00011888,2]
[380302870,1755648644939,-13427.1330136,0.00011888,2]
[380302872,1755648644949,-750.8,0.00011899,2]
[380302874,1755648644958,-479.4279438,0.00011901,2]
[380302876,1755648644968,-210.275586,0.00011908,2]
[380302878,1755648644978,-210.275586,0.00011908,2]
[380302880,1755648644987,-210.275586,0.00011908,2]
[380302882,1755648644997,-210.275586,0.00011908,2]
[380302884,1755648645006,-151.0,0.00011908,2]
[380302886,1755648645016,-151.0,0.00011908,2]
[380302888,1755648645026,-151.0,0.00011908,2]
[380302890,1755648645035,-151.0,0.00011908,2]
[380302892,1755648645044,-197.190977,0.00011908,2]
[380302894,1755648645054,-151.0,0.00011908,2]
[380302896,1755648645063,-151.0,0.00011908,2]
[380302899,1755648645091,-151.0,0.00011908,2]
[380302900,1755648645101,-151.0,0.00011908,2]
[380302903,1755648645110,-151.0,0.00011908,2]
[380302905,1755648645120,-151.0,0.00011908,2]
[380302907,1755648645130,-151.0,0.00011908,2]
[380302909,1755648645141,-151.0,0.00011908,2]
[380302911,1755648645150,-58534.9562205,0.00011908,2]
[380302913,1755648645160,-2099.5783837,0.00011956,2]
[380302915,1755648645170,-1841.2117903,0.00011956,2]
[380302917,1755648645180,-1353.7139022,0.00011956,2]
[380302919,1755648645190,-95154.79992501,0.00012,2]
[380302921,1755648645199,-26060.24952738,0.00012,2]
[380302923,1755648645209,-151.0,0.00012,2]
[380302925,1755648645219,-151.0,0.00012,2]
[380302927,1755648645229,-291.03891,0.00012,2]
[380302929,1755648645239,-151.0,0.00012,2]
[380302961,1755648645506,-151.0,0.00012,2]
[380302964,1755648645544,-165.561665,0.00012,2]
[380302965,1755648645554,-151.0,0.00012,2]
[380302967,1755648645563,-165.561665,0.00012,2]
[380302968,1755648645573,-300.0,0.00012,2]
[380302970,1755648645583,-165.561665,0.00012,2]
[380302972,1755648645592,-165.561665,0.00012,2]
[380302974,1755648645602,-151.0,0.00012,2]
[380302975,1755648645611,-208.99,0.00012,2]
[380302976,1755648645621,-255.0,0.00012044,2]
[380302977,1755648645630,-1147.19,0.00012094,2]
[380302978,1755648645639,-500.0,0.00012096,2]
[380302979,1755648645649,-496.0,0.00012096,2]
[380302980,1755648645658,-500.0,0.00012096,2]
[380302981,1755648645668,-257.91791004,0.00012096,2]
[380302982,1755648645678,-300.0,0.00012096,2]
[380302983,1755648645688,-13060.9141557,0.00012111,2]
[380302984,1755648645698,-151.0,0.00012186,2]
[380302985,1755648645708,-268.0,0.00012192,3]
[380302986,1755648645718,-9528.32,0.000123,7]
[380302987,1755648645727,-151.0,0.000123,2]
[380302988,1755648645737,-1025.967762,0.000123,2]
[380302989,1755648645746,-151.0,0.000123,2]
[380302990,1755648645756,-1025.967762,0.000123,2]
[380302991,1755648645765,-151.0,0.000123,2]
[380302992,1755648645774,-1025.967762,0.000123,2]
[380302993,1755648645784,-1025.967762,0.000123,2]
[380302994,1755648645793,-151.0,0.000123,2]
[380302995,1755648645804,-581.414983,0.000123,2]
[380302996,1755648645814,-151.0,0.000123,2]
[380302998,1755648645823,-151.0,0.000123,2]
[380303000,1755648645833,-581.414983,0.000123,2]
[380303002,1755648645842,-151.0,0.000123,2]
[380303004,1755648645851,-581.414983,0.000123,2]
[380303006,1755648645861,-446.315392,0.000123,2]
[380303008,1755648645870,-581.414983,0.000123,2]
[380303010,1755648645881,-446.315392,0.000123,2]
[380303012,1755648645890,-446.315392,0.000123,2]
[380303014,1755648645899,-446.315392,0.000123,2]
[380303016,1755648645909,-151.0,0.000123,2]
[380303018,1755648645919,-151.0,0.000123,2]
[380303019,1755648645928,-151.0,0.000123,2]
[380303020,1755648645937,-151.0,0.000123,2]
[380303021,1755648645947,-151.0,0.000123,2]
[380303022,1755648645957,-151.0,0.000123,2]
[380303023,1755648645967,-5433.016374,0.000123,2]
[380303024,1755648645976,-151.0,0.000123,2]
[380303025,1755648645986,-5433.016374,0.000123,2]
[380303026,1755648645995,-388.577591,0.000123,2]
[380303027,1755648646004,-5433.016374,0.000123,2]
[380303028,1755648646013,-1156.606502,0.000123,2]
[380303030,1755648646023,-388.577591,0.000123,2]
[380303032,1755648646032,-1156.606502,0.000123,2]
[380303034,1755648646042,-151.0,0.000123,2]
[380303036,1755648646052,-388.577591,0.000123,2]
[380303038,1755648646062,-1156.606502,0.000123,2]
[380303040,1755648646071,-151.0,0.000123,2]
[380303042,1755648646081,-388.577591,0.000123,2]
[380303045,1755648646095,-1156.606502,0.000123,2]
[380303047,1755648646105,-151.0,0.000123,2]
[380303049,1755648646114,-151.0,0.000123,2]
[380303051,1755648646123,-151.0,0.000123,2]
[380303053,1755648646134,-151.0,0.000123,2]
[380303054,1755648646143,-151.0,0.000123,2]
[380303055,1755648646153,-1098.769143,0.000123,2]
[380303056,1755648646163,-424.978042,0.000123,2]
[380303057,1755648646173,-424.978042,0.000123,2]
[380303058,1755648646183,-173.770596,0.000123,2]
[380303059,1755648646192,-5433.016374,0.000123,2]
[380303060,1755648646202,-1098.769143,0.000123,2]
[380303061,1755648646211,-173.770596,0.000123,2]
[380303062,1755648646221,-331.802065,0.000123,2]
[380303064,1755648646231,-1098.769143,0.000123,2]
[380303065,1755648646240,-173.770596,0.000123,2]
[380303066,1755648646249,-331.802065,0.000123,2]
[380303067,1755648646258,-1098.769143,0.000123,2]
[380303068,1755648646268,-173.770596,0.000123,2]
[380303069,1755648646278,-331.802065,0.000123,2]
[380303070,1755648646288,-161.66666666,0.00012333,2]
[380303071,1755648646297,-1007.85328114,0.00012346,2]
[380303072,1755648646308,-1147.19,0.00012368,2]
[380303073,1755648646317,-500.0,0.0001237,2]
[380303074,1755648646327,-496.0,0.0001237,2]
[380303075,1755648646337,-500.0,0.0001237,2]
[380303076,1755648646347,-300.0,0.0001237,2]
[380303077,1755648646356,-301.59104201,0.000125,2]
[380303078,1755648646366,-151.0,0.00012576,2]
[380303079,1755648646375,-9528.32,0.000126,7]
[380303080,1755648646385,-15861.77,0.000126,2]
[380303081,1755648646394,-1147.19,0.00012642,2]
[380303082,1755648646403,-500.0,0.00012644,2]
[380303083,1755648646413,-496.0,0.00012644,2]
[380303084,1755648646422,-500.0,0.00012644,2]
[380303085,1755648646432,-300.0,0.00012644,2]
[380303086,1755648646441,-293047.07,0.000127,2]
[380303087,1755648646450,-151.0,0.000127,2]
[380303088,1755648646460,-151.0,0.000127,2]
[380303089,1755648646469,-151.0,0.000127,2]
[380303090,1755648646480,-151.0,0.000127,2]
[380303091,1755648646489,-151.0,0.000127,2]
[380303092,1755648646499,-151.0,0.000127,2]
[380303093,1755648646508,-151.580468,0.000127,2]
[380303094,1755648646518,-151.0,0.000127,2]
[380303095,1755648646527,-151.0,0.000127,2]
[380303096,1755648646537,-151.277736,0.000127,2]
[380303097,1755648646546,-151.0,0.000127,2]
[380303098,1755648646556,-151.0,0.000127,2]
[380303099,1755648646565,-151.0,0.000127,2]
[380303100,1755648646576,-151.0,0.000127,2]
[380303101,1755648646585,-151.0,0.000127,2]
[380303102,1755648646594,-151.0,0.000127,2]
[380303103,1755648646604,-151.0,0.000127,2]
[380303104,1755648646613,-905.824476,0.000127,2]
[380303105,1755648646624,-905.824476,0.000127,2]
[380303106,1755648646633,-151.0,0.000127,2]
[380303107,1755648646643,-151.0,0.000127,2]
[380303108,1755648646654,-905.824476,0.000127,2]
[380303109,1755648646666,-151.0,0.000127,2]
[380303110,1755648646676,-151.0,0.000127,2]
[380303111,1755648646687,-905.824476,0.000127,2]
[380303112,1755648646698,-151.0,0.000127,2]
[380303113,1755648646707,-317.387951,0.000127,2]
[380303114,1755648646717,-317.387951,0.000127,2]
[380303115,1755648646727,-153.981414,0.000127,2]
[380303116,1755648646737,-317.387951,0.000127,2]
[380303117,1755648646748,-151.0,0.000127,2]
[380303118,1755648646759,-317.387951,0.000127,2]
[380303119,1755648646771,-151.0,0.000127,2]
[380303120,1755648646782,-468.362175,0.000127,2]
[380303121,1755648646791,-468.362175,0.000127,2]
[380303122,1755648646801,-468.362175,0.000127,2]
[380303123,1755648646813,-151.0,0.000127,2]
[380303124,1755648646823,-157.375697,0.000127,2]
[380303125,1755648646832,-468.362175,0.000127,2]
[380303126,1755648646841,-157.375697,0.000127,2]
[380303127,1755648646851,-157.375697,0.000127,2]
[380303128,1755648646860,-157.375697,0.000127,2]
[380303129,1755648646870,-242.444781,0.000127,2]
[380303130,1755648646879,-151.0,0.000127,2]
[380303131,1755648646888,-151.0,0.000127,2]
[380303133,1755648646898,-151.0,0.000127,2]
[380303134,1755648646907,-151.0,0.000127,2]
[380303135,1755648646916,-151.0,0.000127,2]
[380303136,1755648646926,-151.0,0.000127,2]
[380303137,1755648646935,-151.0,0.000127,2]
[380303138,1755648646945,-151.0,0.000127,2]
[380303139,1755648646955,-302.327394,0.000127,2]
[380303140,1755648646965,-151.0,0.000127,2]
[380303141,1755648646975,-302.327394,0.000127,2]
[380303142,1755648646985,-151.0,0.000127,2]
[380303143,1755648646995,-302.327394,0.000127,2]
[380303144,1755648647004,-151.0,0.000127,2]
[380303145,1755648647013,-151.0,0.000127,2]
[380303146,1755648647023,-151.0,0.000127,2]
[380303147,1755648647032,-302.327394,0.000127,2]
[380303148,1755648647041,-151.0,0.000127,2]
[380303149,1755648647051,-280.722744,0.000127,2]
[380303150,1755648647064,-262.889957,0.000127,2]
[380303151,1755648647073,-151.0,0.000127,2]
[380303152,1755648647086,-151.0,0.000127,2]
[380303153,1755648647096,-262.889957,0.000127,2]
[380303154,1755648647105,-262.889957,0.000127,2]
[380303155,1755648647115,-151.0,0.000127,2]
[380303156,1755648647126,-151.0,0.000127,2]
[380303157,1755648647138,-151.0,0.000127,2]
[380303158,1755648647148,-151.0,0.000127,2]
[380303159,1755648647158,-151.0,0.000127,2]
[380303160,1755648647169,-151.0,0.000127,2]
[380303161,1755648647179,-262.889957,0.000127,2]
[380303162,1755648647189,-175.847699,0.000127,2]
[380303163,1755648647198,-294.620803,0.000127,2]
[380303164,1755648647208,-294.620803,0.000127,2]
[380303165,1755648647217,-294.620803,0.000127,2]
[380303166,1755648647227,-294.620803,0.000127,2]
[380303167,1755648647237,-151.0,0.000127,2]
[380303168,1755648647247,-151.0,0.000127,2]
[380303169,1755648647256,-151.0,0.000127,2]
[380303170,1755648647266,-151.0,0.000127,2]
[380303171,1755648647276,-151.0,0.000127,2]
[380303172,1755648647285,-190.415103,0.000127,2]
[380303173,1755648647295,-302.782513,0.000127,2]
[380303174,1755648647306,-1015.970071,0.000127,2]
[380303175,1755648647315,-190.415103,0.000127,2]
[380303176,1755648647325,-302.782513,0.000127,2]
[380303177,1755648647335,-1015.970071,0.000127,2]
[380303178,1755648647344,-151.0,0.000127,2]
[380303179,1755648647354,-190.415103,0.000127,2]
[380303180,1755648647364,-302.782513,0.000127,2]
[380303181,1755648647374,-1015.970071,0.000127,2]
[380303182,1755648647385,-151.0,0.000127,2]
[380303183,1755648647394,-151.0,0.000127,2]
[380303184,1755648647404,-1015.970071,0.000127,2]
[380303185,1755648647414,-302.782513,0.000127,2]
[380303186,1755648647424,-190.415103,0.000127,2]
[380303187,1755648647433,-151.0,0.000127,2]
[380303188,1755648647442,-151.0,0.000127,2]
[380303189,1755648647452,-151.0,0.000127,2]
[380303190,1755648647462,-243.72,0.000127,2]
[380303191,1755648647471,-151.0,0.000127,2]
[380303192,1755648647481,-151.0,0.000127,2]
[380303193,1755648647491,-304.287583,0.000127,2]
[380303194,1755648647499,-370.531636,0.000127,2]
[380303195,1755648647508,-304.287583,0.000127,2]
[380303196,1755648647517,-370.531636,0.000127,2]
[380303197,1755648647527,-151.0,0.000127,2]
[380303198,1755648647536,-370.531636,0.000127,2]
[380303199,1755648647546,-304.287583,0.000127,2]
[380303200,1755648647557,-551.065868,0.000127,2]
[380303201,1755648647566,-151.0,0.000127,2]
[380303202,1755648647576,-151.0,0.000127,2]
[380303203,1755648647585,-370.531636,0.000127,2]
[380303204,1755648647594,-480.986549,0.000127,2]
[380303205,1755648647605,-304.287583,0.000127,2]
[380303206,1755648647615,-151.0,0.000127,2]
[380303207,1755648647625,-151.0,0.000127,2]
[380303208,1755648647638,-551.065868,0.000127,2]
[380303209,1755648647648,-480.986549,0.000127,2]
[380303210,1755648647660,-151.0,0.000127,2]
[380303211,1755648647670,-551.065868,0.000127,2]
[380303212,1755648647680,-151.0,0.000127,2]
[380303213,1755648647689,-480.986549,0.000127,2]
[380303214,1755648647699,-151.0,0.000127,2]
[380303215,1755648647709,-551.065868,0.000127,2]
[380303216,1755648647720,-176.591118,0.000127,2]
[380303217,1755648647729,-151.0,0.000127,2]
[380303218,1755648647739,-480.986549,0.000127,2]
[380303219,1755648647748,-151.0,0.000127,2]
[380303220,1755648647758,-151.0,0.000127,2]
[380303221,1755648647767,-151.0,0.000127,2]
[380303222,1755648647778,-151.0,0.000127,2]
[380303223,1755648647788,-151.0,0.000127,2]
[380303224,1755648647798,-151.0,0.000127,2]
[380303225,1755648647808,-169.435498,0.000127,2]
[380303226,1755648647818,-169.435498,0.000127,2]
[380303227,1755648647827,-169.435498,0.000127,2]
[380303228,1755648647837,-169.435498,0.000127,2]
[380303229,1755648647846,-210.291861,0.000127,2]
[380303230,1755648647855,-151.0,0.000127,2]
[380303231,1755648647865,-210.291861,0.000127,2]
[380303232,1755648647874,-151.0,0.000127,2]
[380303233,1755648648012,-210.291861,0.000127,2]
[380303234,1755648648021,-159.806152,0.000127,2]
[380303235,1755648648031,-210.291861,0.000127,2]
[380303236,1755648648041,-562.88533,0.000127,2]
[380303237,1755648648051,-562.88533,0.000127,2]
[380303238,1755648648062,-151.0,0.000127,2]
[380303239,1755648648071,-562.88533,0.000127,2]
[380303240,1755648648083,-151.0,0.000127,2]
[380303241,1755648648101,-562.88533,0.000127,2]
[380303242,1755648648111,-505.465063,0.000127,2]
[380303243,1755648648120,-151.0,0.000127,2]
[380303244,1755648648130,-151.0,0.000127,2]
[380303245,1755648648139,-505.465063,0.000127,2]
[380303246,1755648648148,-151.0,0.000127,2]
[380303247,1755648648157,-505.465063,0.000127,2]
[380303248,1755648648167,-10818.928408,0.000127,2]
[380303249,1755648648176,-151.0,0.000127,2]
[380303250,1755648648185,-151.0,0.000127,2]
[380303251,1755648648195,-505.465063,0.000127,2]
[380303252,1755648648204,-10818.928408,0.000127,2]
[380303253,1755648648213,-151.0,0.000127,2]
[380303254,1755648648223,-151.0,0.000127,2]
[380303255,1755648648232,-361.577452,0.000127,2]
[380303256,1755648648241,-381.324237,0.000127,2]
[380303257,1755648648251,-186.543124,0.000127,2]
[380303258,1755648648260,-10818.928408,0.000127,2]
[380303259,1755648648270,-361.577452,0.000127,2]
[380303260,1755648648279,-151.0,0.000127,2]
[380303261,1755648648290,-381.324237,0.000127,2]
[380303262,1755648648299,-151.0,0.000127,2]
[380303263,1755648648310,-361.577452,0.000127,2]
[380303264,1755648648319,-151.0,0.000127,2]
[380303265,1755648648329,-361.577452,0.000127,2]
[380303266,1755648648338,-160.562854,0.000127,2]
[380303267,1755648648347,-151.0,0.000127,2]
[380303268,1755648648356,-151.0,0.000127,2]
[380303269,1755648648365,-151.0,0.000127,2]
[380303270,1755648648375,-151.0,0.000127,2]
[380303271,1755648648384,-151.0,0.000127,2]
[380303272,1755648648394,-151.0,0.000127,2]
[380303273,1755648648404,-151.0,0.000127,2]
[380303274,1755648648414,-10818.928408,0.000127,2]
[380303275,1755648648423,-381.324237,0.000127,2]
[380303276,1755648648432,-381.324237,0.000127,2]
[380303277,1755648648442,-151.0,0.000127,2]
[380303278,1755648648451,-151.0,0.000127,2]
[380303279,1755648648460,-151.0,0.000127,2]
[380303280,1755648648470,-151.0,0.000127,2]
[380303281,1755648648479,-251.714146,0.000127,2]
[380303282,1755648648489,-720.0,0.00012704,2]
[380303283,1755648648499,-9528.32,0.000128,7]
[380303284,1755648648508,-1147.19,0.00012916,2]
[380303285,1755648648517,-439.0,0.00012918,2]
[380303286,1755648648526,-496.0,0.00012918,2]
[380303287,1755648648535,-500.0,0.00012918,2]
[380303288,1755648648544,-300.0,0.00012918,2]
[380303289,1755648648553,-151.0,0.00012973,2]
[380303290,1755648648564,-3399.80155333,0.00013,2]
[380303291,1755648648576,-2710.23611,0.00013,2]
[380303292,1755648648585,-718.3,0.00013059,2]
[380303293,1755648648595,-1000.0,0.00013109,2]
[380303294,1755648648604,-150.0,0.00013187,2]
[380303295,1755648648613,-788.60002085,0.00013187,2]
[380303296,1755648648623,-1005.07845795,0.00013188,2]
[380303297,1755648648632,-1221.55689504,0.00013188,2]
[380303298,1755648648641,-1438.03533214,0.00013188,2]
[380303299,1755648648649,-433.0,0.00013188,2]
[380303300,1755648648658,-1654.51376924,0.00013189,2]
[380303301,1755648648668,-1870.99220633,0.00013189,2]
[380303302,1755648648677,-2087.47064343,0.00013189,2]
[380303303,1755648648687,-2303.94908052,0.0001319,2]
[380303304,1755648648697,-2520.42751762,0.0001319,2]
[380303305,1755648648706,-1147.19,0.0001319,2]
[380303306,1755648648715,-496.0,0.00013192,2]
[380303307,1755648648725,-500.0,0.00013192,2]
[380303308,1755648648735,-394.37731544,0.00013192,2]
[380303309,1755648648744,-169.9,0.00013216,2]
[380303310,1755648648754,-1477.0,0.00013233,2]
[380303311,1755648648763,-9528.32,0.000133,7]
[380303312,1755648648773,-1147.19,0.00013464,2]
[380303313,1755648648782,-496.0,0.00013466,2]
[380303314,1755648648791,-500.0,0.00013466,2]
[380303315,1755648648801,-151.0,0.00013502,2]
[380303316,1755648648811,-1447.56,0.000136,2]
[380303317,1755648648821,-2000.0,0.0001369,2]
[380303318,1755648648830,-150.0,0.00013698,2]
[380303319,1755648648840,-610.0,0.00013699,2]
[380303320,1755648648849,-1000.0,0.00013699,2]
[380303321,1755648648859,-200.0,0.00013699,2]
[380303322,1755648648868,-200.0,0.00013699,2]
[380303323,1755648648877,-200.0,0.00013699,2]
[380303324,1755648648886,-200.0,0.00013699,2]
[380303325,1755648648895,-200.0,0.00013699,2]
[380303326,1755648648905,-200.0,0.00013699,2]
[380303327,1755648648914,-157.147186,0.00013699,2]
[380303328,1755648648923,-1190.078378,0.00013699,2]
[380303329,1755648648932,-1190.078378,0.00013699,2]
[380303330,1755648648941,-1190.078378,0.00013699,2]
[380303331,1755648648951,-1190.078378,0.00013699,2]
[380303332,1755648648960,-372.491724,0.00013699,2]
[380303333,1755648648968,-372.491724,0.00013699,2]
[380303334,1755648648977,-372.491724,0.00013699,2]